[Event "Kvibergspelen 2018"]
[Site "Prioritet Serneke Arena, Krutvagen 2, Gothenburg, Sweden"]
[Date "2018.04.20"]
[Round "4.19"]
[White "Moller, Mikael"]
[Black "Al Waeli, Laith"]
[Result "1/2-1/2"]
[TimeControl "15 minutes + 5 seconds per move from move one (Round 1 - 4) / 90 minutes + 30 seconds per move from move one (Round 5 - 8)"]
[BlackTitle "FM"]
[WhiteFideId "1738461"]
[BlackFideId "4801059"]
[WhiteElo "1962"]
[BlackElo "2109"]

1. e4 {[%clk 00:15:08]} e6 {[%clk 00:13:50]} {[%emt 00:01:21]} 2. d4 {[%clk
00:15:09]} {[%emt 00:00:04]} d5 {[%clk 00:13:53]} {[%emt 00:00:02]} 3. Nc3
{[%clk 00:15:09]} {[%emt 00:00:06]} dxe4 {[%clk 00:13:57]} {[%emt 00:00:01]} 4.
Nxe4 {[%clk 00:15:12]} {[%emt 00:00:02]} Bd7 {[%clk 00:14:01]} 5. Nf3 {[%clk
00:14:50]} {[%emt 00:00:27]} Bc6 {[%clk 00:14:05]} {[%emt 00:00:02]} 6. Bd3
{[%clk 00:14:46]} {[%emt 00:00:09]} Nd7 {[%clk 00:14:08]} {[%emt 00:00:03]} 7.
Bd2 {[%clk 00:14:19]} {[%emt 00:00:31]} Ngf6 {[%clk 00:14:07]} {[%emt
00:00:06]} 8. Qe2 {[%clk 00:14:13]} {[%emt 00:00:11]} Nxe4 {[%clk 00:13:48]}
{[%emt 00:00:25]} 9. Bxe4 {[%clk 00:14:16]} {[%emt 00:00:03]} Bxe4 {[%clk
00:13:51]} 10. Qxe4 {[%clk 00:14:19]} {[%emt 00:00:02]} c6 {[%clk 00:13:56]}
{[%emt 00:00:01]} 11. O-O-O {[%clk 00:14:09]} {[%emt 00:00:15]} Nf6 {[%clk
00:13:27]} {[%emt 00:00:34]} 12. Qe2 {[%clk 00:13:59]} {[%emt 00:00:15]} Be7
{[%clk 00:13:10]} {[%emt 00:00:22]} 13. Kb1 {[%clk 00:14:01]} {[%emt 00:00:03]}
O-O {[%clk 00:12:48]} {[%emt 00:00:27]} 14. Rdg1 {[%clk 00:12:35]} {[%emt
00:01:30]} Qd5 {[%clk 00:12:08]} {[%emt 00:00:46]} 15. g4 {[%clk 00:12:09]}
{[%emt 00:00:30]} Qe4 {[%clk 00:11:32]} {[%emt 00:00:42]} 16. Qxe4 {[%clk
00:10:23]} {[%emt 00:01:52]} Nxe4 {[%clk 00:11:34]} {[%emt 00:00:02]} 17. Be3
{[%clk 00:10:23]} {[%emt 00:00:05]} b5 {[%clk 00:11:29]} {[%emt 00:00:10]} 18.
Ne5 {[%clk 00:09:54]} {[%emt 00:00:34]} Rfc8 {[%clk 00:11:33]} {[%emt
00:00:02]} 19. f3 {[%clk 00:09:48]} {[%emt 00:00:12]} Nd6 {[%clk 00:11:36]}
{[%emt 00:00:02]} 20. h4 {[%clk 00:09:15]} {[%emt 00:00:38]} a5 {[%clk
00:10:22]} {[%emt 00:01:19]} 21. h5 {[%clk 00:09:17]} {[%emt 00:00:02]} f6
{[%clk 00:07:35]} {[%emt 00:02:52]} 22. Nd3 {[%clk 00:08:44]} {[%emt 00:00:39]}
Nc4 {[%clk 00:07:39]} {[%emt 00:00:01]} 23. Bc1 {[%clk 00:08:47]} {[%emt
00:00:02]} Rd8 {[%clk 00:07:29]} {[%emt 00:00:14]} 24. Re1 {[%clk 00:08:38]}
{[%emt 00:00:14]} Kf7 {[%clk 00:05:55]} {[%emt 00:01:40]} 25. c3 {[%clk
00:06:18]} {[%emt 00:02:25]} Bd6 {[%clk 00:05:18]} {[%emt 00:00:41]} 26. f4
{[%clk 00:05:54]} {[%emt 00:00:30]} b4 {[%clk 00:04:39]} {[%emt 00:00:45]} 27.
Re2 {[%clk 00:05:41]} {[%emt 00:00:18]} bxc3 {[%clk 00:04:42]} {[%emt
00:00:03]} 28. bxc3 {[%clk 00:05:45]} {[%emt 00:00:02]} Rab8+ {[%clk 00:04:46]}
29. Ka1 {[%clk 00:05:48]} {[%emt 00:00:01]} Rb5 {[%clk 00:04:13]} {[%emt
00:00:37]} 30. Rhe1 {[%clk 00:05:03]} {[%emt 00:00:49]} Rdb8 {[%clk 00:03:45]}
{[%emt 00:00:34]} 31. Be3 {[%clk 00:05:05]} {[%emt 00:00:03]} Ba3 {[%clk
00:03:31]} {[%emt 00:00:19]} 32. Bf2 {[%clk 00:04:21]} {[%emt 00:00:49]} Nb2
{[%clk 00:03:25]} {[%emt 00:00:11]} 33. Nc5 {[%clk 00:03:57]} {[%emt 00:00:29]}
Bxc5 {[%clk 00:03:09]} {[%emt 00:00:21]} 34. dxc5 {[%clk 00:04:00]} {[%emt
00:00:02]} Nd3 {[%clk 00:02:53]} {[%emt 00:00:21]} 35. Rd1 {[%clk 00:03:55]}
{[%emt 00:00:08]} Nxf4 {[%clk 00:02:43]} {[%emt 00:00:17]} 36. Red2 {[%clk
00:03:47]} {[%emt 00:00:13]} h6 {[%clk 00:01:40]} {[%emt 00:01:08]} 37. Rd7+
{[%clk 00:03:44]} {[%emt 00:00:08]} Kg8 {[%clk 00:01:35]} {[%emt 00:00:11]} 38.
Re7 {[%clk 00:03:08]} {[%emt 00:00:40]} Rb2 {[%clk 00:01:37]} {[%emt 00:00:03]}
39. Bg3 {[%clk 00:02:59]} {[%emt 00:00:14]} e5 {[%clk 00:01:20]} {[%emt
00:00:22]} 40. Bxf4 {[%clk 00:02:41]} {[%emt 00:00:23]} exf4 {[%clk 00:01:24]}
41. a4 {[%clk 00:02:43]} {[%emt 00:00:02]} R2b3 {[%clk 00:01:08]} {[%emt
00:00:21]} 42. Ka2 {[%clk 00:02:44]} {[%emt 00:00:04]} Rb2+ {[%clk 00:01:08]}
{[%emt 00:00:05]} 43. Ka1 {[%clk 00:02:48]} {[%emt 00:00:01]} R2b3 {[%clk
00:01:09]} {[%emt 00:00:04]} 44. Ka2 {[%clk 00:02:52]} Rxc3 {[%clk 00:01:11]}
{[%emt 00:00:02]} 45. Rdd7 {[%clk 00:02:54]} {[%emt 00:00:03]} Rc2+ {[%clk
00:01:13]} {[%emt 00:00:03]} 46. Ka1 {[%clk 00:02:59]} Rc1+ {[%clk 00:00:43]}
{[%emt 00:00:35]} 47. Ka2 {[%clk 00:03:03]} {[%emt 00:00:01]} Rc2+ {[%clk
00:00:31]} {[%emt 00:00:17]} 48. Ka1 {[%clk 00:03:07]} {[%emt 00:00:01]} Rc1+
{[%clk 00:00:23]} {[%emt 00:00:14]} 49. Ka2 {[%clk 00:03:11]} {[%emt 00:00:01]}
1/2-1/2

[Event "Kvibergspelen 2018"]
[Site "Prioritet Serneke Arena, Krutvagen 2, Gothenburg, Sweden"]
[Date "2018.04.20"]
[Round "4.20"]
[White "Berg, Roy"]
[Black "Eriksson, Lennarth"]
[Result "0-1"]
[TimeControl "15 minutes + 5 seconds per move from move one (Round 1 - 4) / 90 minutes + 30 seconds per move from move one (Round 5 - 8)"]
[WhiteFideId "1711458"]
[BlackFideId "1707736"]
[WhiteElo "1961"]
[BlackElo "2098"]

1. d4 {[%emt 00:13:32]} d6 {[%emt 00:00:03]} 2. Nf3 {[%emt 00:00:04]} f5 {[%emt
00:00:05]} 3. g3 {[%emt 00:00:05]} g6 {[%emt 00:00:05]} 4. c4 {[%emt 00:00:06]}
Nf6 {[%emt 00:00:03]} 5. Nc3 {[%emt 00:00:02]} Bg7 {[%emt 00:00:04]} 6. Bg2
{[%emt 00:00:01]} O-O {[%emt 00:00:05]} 7. O-O {[%emt 00:00:03]} Qe8 {[%emt
00:00:27]} 8. d5 {[%emt 00:01:56]} c6 {[%emt 00:00:09]} 9. Nd4 {[%emt
00:00:14]} Bd7 {[%emt 00:00:02]} 10. Rb1 {[%emt 00:00:52]} Na6 {[%emt
00:01:52]} 11. b4 {[%emt 00:01:59]} e5 {[%emt 00:00:43]} 12. dxe6 {[%emt
00:00:27]} Bxe6 {[%emt 00:00:02]} 13. Nxe6 {[%emt 00:00:14]} Qxe6 {[%emt
00:00:02]} 14. Qb3 {[%emt 00:00:46]} Rae8 {[%emt 00:02:57]} 15. e3 {[%emt
00:00:24]} Ng4 {[%emt 00:00:17]} 16. Ne2 {[%emt 00:01:39]} Ne5 {[%emt
00:00:47]} 17. Rd1 {[%emt 00:02:20]} Nxc4 {[%emt 00:01:45]} 18. Nd4 {[%emt
00:00:15]} Bxd4 {[%emt 00:00:53]} 19. Rxd4 {[%emt 00:00:04]} d5 {[%emt
00:00:04]} 20. a4 {[%emt 00:00:25]} Nc7 {[%emt 00:00:10]} 21. b5 {[%emt
00:00:39]} c5 {[%emt 00:00:12]} 22. Rd1 {[%emt 00:01:26]} Rd8 {[%emt 00:00:29]}
23. Ba3 {[%emt 00:00:24]} b6 {[%emt 00:00:21]} 24. Rbc1 {[%emt 00:00:11]} Nxa3
{[%emt 00:00:32]} 25. Qxa3 {[%emt 00:00:02]} Rf7 {[%emt 00:00:04]} 26. Bf1
{[%emt 00:00:30]} Rfd7 {[%emt 00:00:28]} 27. a5 {[%emt 00:00:03]} Qf6 {[%emt
00:00:20]} 28. axb6 {[%emt 00:00:19]} axb6 {[%emt 00:00:01]} 29. Qb3 {[%emt
00:00:01]} Kg7 {[%emt 00:00:14]} 30. Ra1 {[%emt 00:00:06]} Ne6 {[%emt
00:00:16]} 31. Bg2 {[%emt 00:00:15]} d4 {[%emt 00:00:30]} 32. Bc6 {[%emt
00:00:03]} Rd6 {[%emt 00:00:26]} 33. Ra7+ {[%emt 00:00:04]} Kh6 {[%emt
00:00:22]} 34. Qd3 {[%emt 00:00:26]} dxe3 {[%emt 00:00:18]} 35. Qxe3 {[%emt
00:00:04]} f4 {[%emt 00:00:02]} 36. gxf4 {[%emt 00:01:09]} Rxd1+ {[%emt
00:00:02]} 37. Kg2 Nxf4+ {[%emt 00:00:08]} 0-1

[Event "Kvibergspelen 2018"]
[Site "Prioritet Serneke Arena, Krutvagen 2, Gothenburg, Sweden"]
[Date "2018.04.21"]
[Round "5.1"]
[White "Brynell, Stellan"]
[Black "Hector, Jonny"]
[Result "1/2-1/2"]
[TimeControl "15 minutes + 5 seconds per move from move one (Round 1 - 4) / 90 minutes + 30 seconds per move from move one (Round 5 - 8)"]
[WhiteTitle "GM"]
[BlackTitle "GM"]
[WhiteFideId "1700219"]
[BlackFideId "1700090"]
[WhiteElo "2420"]
[BlackElo "2502"]

1. Nf3 {[%clk 01:30:56]} {[%emt 00:00:03]} d5 {[%clk 01:27:01]} {[%emt
00:03:58]} 2. c4 {[%clk 01:30:53]} {[%emt 00:00:34]} d4 {[%clk 01:25:47]}
{[%emt 00:01:43]} 3. e3 {[%clk 01:29:52]} {[%emt 00:01:32]} Nc6 {[%clk
01:25:53]} {[%emt 00:00:25]} 4. exd4 {[%clk 01:30:13]} {[%emt 00:00:10]} Nxd4
{[%clk 01:25:22]} {[%emt 00:01:00]} 5. Nxd4 {[%clk 01:30:38]} {[%emt 00:00:05]}
Qxd4 {[%clk 01:25:39]} {[%emt 00:00:12]} 6. d3 {[%clk 01:30:37]} {[%emt
00:00:31]} Nh6 {[%clk 01:17:36]} {[%emt 00:08:33]} 7. Be2 {[%clk 01:30:19]}
{[%emt 00:00:48]} g6 {[%clk 01:13:11]} {[%emt 00:04:55]} 8. Nc3 {[%clk
01:26:12]} {[%emt 00:04:38]} c6 {[%clk 01:11:43]} {[%emt 00:01:57]} 9. Be3
{[%clk 01:25:35]} {[%emt 00:01:06]} Qd8 {[%clk 01:11:30]} {[%emt 00:00:42]} 10.
g4 {[%clk 01:15:02]} {[%emt 00:11:04]} f5 {[%clk 01:08:52]} {[%emt 00:03:08]}
11. h3 {[%clk 00:58:36]} {[%emt 00:16:55]} e5 {[%clk 01:06:55]} {[%emt
00:02:27]} 12. f3 {[%clk 00:55:12]} {[%emt 00:03:54]} Nf7 {[%clk 01:01:43]}
{[%emt 00:05:42]} 13. Qd2 {[%clk 00:53:23]} {[%emt 00:02:19]} Bh6 {[%clk
01:00:27]} {[%emt 00:01:45]} 14. O-O-O {[%clk 00:49:04]} {[%emt 00:04:50]} Bxe3
{[%clk 01:00:35]} {[%emt 00:00:22]} 15. Qxe3 {[%clk 00:49:31]} {[%emt
00:00:03]} Qg5 {[%clk 00:57:09]} {[%emt 00:03:54]} 16. Qxg5 {[%clk 00:39:38]}
{[%emt 00:10:25]} Nxg5 {[%clk 00:55:58]} {[%emt 00:01:40]} 17. d4 {[%clk
00:35:46]} {[%emt 00:04:23]} exd4 {[%clk 00:55:59]} {[%emt 00:00:28]} 18. Rxd4
{[%clk 00:36:11]} {[%emt 00:00:06]} Ne6 {[%clk 00:55:07]} {[%emt 00:01:22]} 19.
Rd2 {[%clk 00:36:27]} {[%emt 00:00:15]} O-O {[%clk 00:53:05]} {[%emt 00:02:31]}
20. h4 {[%clk 00:31:42]} {[%emt 00:05:15]} Nf4 {[%clk 00:49:58]} {[%emt
00:03:37]} 21. g5 {[%clk 00:29:19]} {[%emt 00:02:53]} Be6 {[%clk 00:48:40]}
{[%emt 00:01:48]} 22. Bf1 {[%clk 00:25:52]} {[%emt 00:03:57]} Rad8 {[%clk
00:48:32]} {[%emt 00:00:38]} 23. Rhh2 {[%clk 00:25:34]} {[%emt 00:00:48]} h6
{[%clk 00:45:23]} {[%emt 00:03:38]} 24. Rxd8 {[%clk 00:25:05]} {[%emt
00:01:00]} Rxd8 {[%clk 00:45:45]} {[%emt 00:00:08]} 25. Rd2 {[%clk 00:25:32]}
{[%emt 00:00:03]} Re8 {[%clk 00:44:19]} {[%emt 00:01:56]} 26. Rd4 {[%clk
00:20:33]} {[%emt 00:05:30]} hxg5 {[%clk 00:44:27]} {[%emt 00:00:21]} 27. hxg5
{[%clk 00:20:57]} {[%emt 00:00:07]} Bf7 {[%clk 00:43:25]} {[%emt 00:01:31]} 28.
Rxf4 {[%clk 00:15:42]} {[%emt 00:05:45]} Re1+ {[%clk 00:43:39]} {[%emt
00:00:15]} 29. Kd2 {[%clk 00:16:11]} {[%emt 00:00:02]} Rxf1 {[%clk 00:43:59]}
{[%emt 00:00:10]} 30. c5 {[%clk 00:13:17]} {[%emt 00:03:24]} Rf2+ {[%clk
00:42:49]} {[%emt 00:01:38]} 31. Ne2 {[%clk 00:12:12]} {[%emt 00:01:36]} Bxa2
{[%clk 00:38:00]} {[%emt 00:05:20]} 32. Ke3 {[%clk 00:12:38]} {[%emt 00:00:04]}
Rf1 {[%clk 00:37:35]} {[%emt 00:00:54]} 33. Rb4 {[%clk 00:07:55]} {[%emt
00:05:14]} Bd5 {[%clk 00:37:14]} {[%emt 00:00:50]} 34. f4 {[%clk 00:06:06]}
{[%emt 00:02:19]} Rf3+ {[%clk 00:26:47]} {[%emt 00:10:56]} 35. Kd2 {[%clk
00:04:57]} {[%emt 00:01:39]} a5 {[%clk 00:26:12]} {[%emt 00:01:06]} 36. Rxb7
{[%clk 00:04:59]} {[%emt 00:00:28]} Bc4 {[%clk 00:26:16]} {[%emt 00:00:25]} 37.
Nc3 {[%clk 00:03:37]} {[%emt 00:01:52]} Rxf4 {[%clk 00:24:57]} {[%emt
00:01:48]} 38. Rc7 {[%clk 00:03:13]} {[%emt 00:00:56]} Rg4 {[%clk 00:10:44]}
{[%emt 00:14:43]} 39. Rxc6 {[%clk 00:03:41]} {[%emt 00:00:02]} Rxg5 {[%clk
00:10:53]} {[%emt 00:00:20]} 40. b3 {[%clk 00:01:40]} {[%emt 00:02:31]} Rg2+
{[%clk 00:08:46]} {[%emt 00:02:37]} 41. Ke3 {[%clk 00:01:51]} {[%emt 00:00:20]}
Rg3+ {[%clk 00:08:29]} {[%emt 00:00:46]} 42. Kd4 {[%clk 00:01:35]} {[%emt
00:00:46]} Bf1 {[%clk 00:08:33]} {[%emt 00:00:27]} 43. Nd5 {[%clk 00:01:14]}
{[%emt 00:00:51]} Rd3+ {[%clk 00:07:26]} {[%emt 00:01:36]} 44. Ke5 {[%clk
00:01:15]} {[%emt 00:00:29]} Rxd5+ {[%clk 00:07:49]} {[%emt 00:00:07]} 45. Kxd5
{[%clk 00:01:37]} {[%emt 00:00:09]} Bg2+ {[%clk 00:08:14]} {[%emt 00:00:04]} 46.
Kd6 {[%clk 00:02:03]} {[%emt 00:00:05]} Bxc6 {[%clk 00:08:37]} {[%emt
00:00:06]} 47. Kxc6 {[%clk 00:02:31]} {[%emt 00:00:02]} f4 {[%clk 00:08:58]}
{[%emt 00:00:08]} 48. Kb6 {[%clk 00:01:31]} {[%emt 00:01:31]} f3 {[%clk
00:09:05]} {[%emt 00:00:23]} 49. c6 {[%clk 00:01:59]} {[%emt 00:00:03]} f2
{[%clk 00:09:29]} {[%emt 00:00:05]} 50. c7 {[%clk 00:02:26]} {[%emt 00:00:04]}
f1=Q {[%clk 00:09:50]} {[%emt 00:00:08]} 51. c8=Q+ {[%clk 00:02:52]} {[%emt
00:00:04]} Kg7 {[%clk 00:08:51]} {[%emt 00:01:28]} 52. Kxa5 {[%clk 00:01:08]}
{[%emt 00:02:16]} g5 {[%clk 00:08:58]} {[%emt 00:00:22]} 53. b4 {[%clk
00:01:15]} {[%emt 00:00:24]} Qa1+ {[%clk 00:08:25]} {[%emt 00:01:01]} 54. Kb6
{[%clk 00:01:19]} {[%emt 00:00:27]} Qd4+ {[%clk 00:08:14]} {[%emt 00:00:40]} 55.
Qc5 {[%clk 00:01:24]} {[%emt 00:00:26]} Qf6+ {[%clk 00:08:35]} {[%emt
00:00:09]} 56. Ka7 {[%clk 00:00:56]} {[%emt 00:00:58]} g4 {[%clk 00:07:31]}
{[%emt 00:01:33]} 57. b5 {[%clk 00:01:19]} {[%emt 00:00:08]} g3 {[%clk
00:07:16]} {[%emt 00:00:44]} 58. Qc6 {[%clk 00:00:35]} {[%emt 00:01:15]} Qf2+
{[%clk 00:06:20]} {[%emt 00:01:25]} 59. b6 {[%clk 00:00:57]} {[%emt 00:00:10]}
g2 {[%clk 00:06:34]} {[%emt 00:00:15]} 60. Qc3 {[%clk 00:00:59]} {[%emt
00:00:28]} Qf6 {[%clk 00:04:30]} {[%emt 00:02:33]} 61. Qg3 {[%clk 00:01:00]}
{[%emt 00:00:30]} Qg6 {[%clk 00:04:54]} {[%emt 00:00:06]} 62. Qc3 {[%clk
00:01:19]} {[%emt 00:00:12]} Kh7 {[%clk 00:02:48]} {[%emt 00:02:35]} 63. Qh3
{[%clk 00:01:37]} {[%emt 00:00:13]} Kg8 {[%clk 00:02:52]} {[%emt 00:00:25]} 64.
Qc8+ {[%clk 00:02:05]} {[%emt 00:00:02]} Kg7 {[%clk 00:03:04]} {[%emt
00:00:17]} 65. Qc3 {[%clk 00:02:31]} {[%emt 00:00:05]} Kh7 {[%clk 00:03:25]}
{[%emt 00:00:08]} 66. Qh3 {[%clk 00:02:54]} {[%emt 00:00:07]} 1/2-1/2

[Event "Kvibergspelen 2018"]
[Site "Prioritet Serneke Arena, Krutvagen 2, Gothenburg, Sweden"]
[Date "2018.04.21"]
[Round "5.2"]
[White "Blomqvist, Erik"]
[Black "Ernst, Thomas"]
[Result "1/2-1/2"]
[TimeControl "15 minutes + 5 seconds per move from move one (Round 1 - 4) / 90 minutes + 30 seconds per move from move one (Round 5 - 8)"]
[WhiteTitle "GM"]
[BlackTitle "GM"]
[WhiteFideId "1709437"]
[BlackFideId "1700065"]
[WhiteElo "2494"]
[BlackElo "2366"]

1. e4 {[%clk 01:30:55]} {[%emt 00:00:03]} e5 {[%clk 01:30:52]} {[%emt
00:00:09]} 2. Nf3 {[%clk 01:31:19]} {[%emt 00:00:07]} Nc6 {[%clk 01:31:15]}
{[%emt 00:00:07]} 3. Bb5 {[%clk 01:31:41]} {[%emt 00:00:07]} a6 {[%clk
01:31:35]} {[%emt 00:00:10]} 4. Ba4 {[%clk 01:32:04]} {[%emt 00:00:06]} Nf6
{[%clk 01:31:57]} {[%emt 00:00:09]} 5. d3 {[%clk 01:32:25]} {[%emt 00:00:09]}
Bc5 {[%clk 01:30:51]} {[%emt 00:01:36]} 6. Nc3 {[%clk 01:32:02]} {[%emt
00:00:53]} b5 {[%clk 01:29:42]} {[%emt 00:01:40]} 7. Bb3 {[%clk 01:32:23]}
{[%emt 00:00:09]} d6 {[%clk 01:30:02]} {[%emt 00:00:10]} 8. Nd5 {[%clk
01:32:19]} {[%emt 00:00:34]} Na5 {[%clk 01:20:39]} {[%emt 00:09:53]} 9. Bg5
{[%clk 01:32:10]} {[%emt 00:00:38]} Nxb3 {[%clk 01:20:37]} {[%emt 00:00:34]} 10.
axb3 {[%clk 01:32:21]} {[%emt 00:00:17]} c6 {[%clk 01:20:42]} {[%emt 00:00:25]}
11. Nxf6+ {[%clk 01:29:36]} {[%emt 00:03:16]} gxf6 {[%clk 01:21:05]} {[%emt
00:00:07]} 12. Be3 {[%clk 01:29:56]} {[%emt 00:00:09]} Rg8 {[%clk 01:18:48]}
{[%emt 00:02:47]} 13. Bxc5 {[%clk 01:13:59]} {[%emt 00:16:29]} dxc5 {[%clk
01:19:12]} {[%emt 00:00:05]} 14. g3 {[%clk 01:10:22]} {[%emt 00:04:06]} Be6
{[%clk 01:14:41]} {[%emt 00:05:01]} 15. Qe2 {[%clk 01:02:32]} {[%emt 00:08:20]}
Qd6 {[%clk 01:07:49]} {[%emt 00:07:21]} 16. O-O {[%clk 00:59:24]} {[%emt
00:03:39]} Kd7 {[%clk 01:06:03]} {[%emt 00:02:16]} 17. Qe3 {[%clk 00:53:40]}
{[%emt 00:06:14]} Kc7 {[%clk 01:06:04]} {[%emt 00:00:30]} 18. Kg2 {[%clk
00:50:53]} {[%emt 00:03:16]} Kb7 {[%clk 00:51:21]} {[%emt 00:15:13]} 19. Nh4
{[%clk 00:44:29]} {[%emt 00:06:54]} Rad8 {[%clk 00:48:24]} {[%emt 00:03:27]} 20.
f4 {[%clk 00:38:57]} {[%emt 00:06:01]} Qd4 {[%clk 00:47:02]} {[%emt 00:01:51]}
21. Qxd4 {[%clk 00:35:48]} {[%emt 00:03:41]} exd4 {[%clk 00:46:53]} {[%emt
00:00:38]} 22. f5 {[%clk 00:35:21]} {[%emt 00:00:58]} Bc8 {[%clk 00:45:32]}
{[%emt 00:01:51]} 23. Rf4 {[%clk 00:34:30]} {[%emt 00:01:21]} Kb6 {[%clk
00:40:51]} {[%emt 00:05:12]} 24. Kf2 {[%clk 00:32:47]} {[%emt 00:02:12]} a5
{[%clk 00:36:38]} {[%emt 00:04:42]} 25. Ng2 {[%clk 00:30:48]} {[%emt 00:02:29]}
h6 {[%clk 00:36:47]} {[%emt 00:00:21]} 26. Rh4 {[%clk 00:29:58]} {[%emt
00:01:20]} Rh8 {[%clk 00:37:12]} {[%emt 00:00:06]} 27. Nf4 {[%clk 00:27:52]}
{[%emt 00:02:36]} Ba6 {[%clk 00:37:02]} {[%emt 00:00:40]} 28. g4 {[%clk
00:24:50]} {[%emt 00:03:32]} c4 {[%clk 00:36:54]} {[%emt 00:00:38]} 29. Nh5
{[%clk 00:24:43]} {[%emt 00:00:37]} a4 {[%clk 00:36:03]} {[%emt 00:01:21]} 30.
bxc4 {[%clk 00:15:25]} {[%emt 00:09:49]} bxc4 {[%clk 00:36:11]} {[%emt
00:00:23]} 31. dxc4 {[%clk 00:15:07]} {[%emt 00:00:47]} Bxc4 {[%clk 00:32:18]}
{[%emt 00:04:22]} 32. Rxa4 {[%clk 00:14:38]} {[%emt 00:01:00]} Bb5 {[%clk
00:32:00]} {[%emt 00:00:47]} 33. Ra3 {[%clk 00:14:21]} {[%emt 00:00:47]} c5
{[%clk 00:30:27]} {[%emt 00:02:03]} 34. Nxf6 {[%clk 00:14:42]} {[%emt
00:00:08]} c4 {[%clk 00:30:42]} {[%emt 00:00:16]} 35. Nd5+ {[%clk 00:13:49]}
{[%emt 00:01:23]} Kc5 {[%clk 00:30:58]} {[%emt 00:00:13]} 36. Rh5 {[%clk
00:08:52]} {[%emt 00:05:28]} f6 {[%clk 00:27:41]} {[%emt 00:03:48]} 37. Nf4
{[%clk 00:06:40]} {[%emt 00:02:41]} Rd6 {[%clk 00:26:38]} {[%emt 00:01:33]} 38.
Ne6+ {[%clk 00:05:57]} {[%emt 00:01:13]} Kb6 {[%clk 00:27:00]} {[%emt
00:00:07]} 39. c3 {[%clk 00:03:30]} {[%emt 00:02:58]} d3 {[%clk 00:27:07]}
{[%emt 00:00:22]} 40. Nd4 {[%clk 00:03:16]} {[%emt 00:00:44]} Bc6 {[%clk
00:26:33]} {[%emt 00:01:04]} 41. g5 {[%clk 00:00:40]} {[%emt 00:03:07]} Bxe4
{[%clk 00:24:31]} {[%emt 00:02:32]} 42. Rxh6 {[%clk 00:01:08]} {[%emt
00:00:02]} Rxh6 {[%clk 00:19:04]} {[%emt 00:05:57]} 43. gxh6 {[%clk 00:01:37]}
Rd7 {[%clk 00:19:23]} {[%emt 00:00:11]} 44. b3 {[%clk 00:00:50]} {[%emt
00:01:18]} Bd5 {[%clk 00:18:23]} {[%emt 00:01:30]} 45. bxc4 {[%clk 00:01:04]}
{[%emt 00:00:17]} Bxc4 {[%clk 00:18:40]} {[%emt 00:00:12]} 46. Ke3 {[%clk
00:00:40]} {[%emt 00:00:54]} Rh7 {[%clk 00:18:16]} {[%emt 00:00:53]} 47. Ra4
{[%clk 00:00:48]} {[%emt 00:00:23]} Kc5 {[%clk 00:16:37]} {[%emt 00:02:08]} 48.
Ra5+ {[%clk 00:00:57]} {[%emt 00:00:22]} Kb6 {[%clk 00:14:08]} {[%emt
00:02:57]} 49. Ra4 {[%clk 00:01:25]} {[%emt 00:00:04]} Kc5 {[%clk 00:14:32]}
{[%emt 00:00:06]} 50. Ra8 {[%clk 00:01:24]} {[%emt 00:00:31]} Rxh6 {[%clk
00:14:27]} {[%emt 00:00:34]} 51. Rc8+ {[%clk 00:01:33]} {[%emt 00:00:22]} Kd5
{[%clk 00:14:39]} {[%emt 00:00:18]} 52. Nf3 {[%clk 00:01:12]} {[%emt 00:00:51]}
Rh3 {[%clk 00:12:19]} {[%emt 00:02:48]} 53. Kf4 {[%clk 00:01:37]} {[%emt
00:00:07]} Ba6 {[%clk 00:12:14]} {[%emt 00:00:33]} 54. Rc7 {[%clk 00:00:47]}
{[%emt 00:01:21]} Kd6 {[%clk 00:11:08]} {[%emt 00:01:36]} 55. Ra7 {[%clk
00:01:14]} {[%emt 00:00:05]} Bc4 {[%clk 00:10:52]} {[%emt 00:00:44]} 56. Nd2
{[%clk 00:00:39]} {[%emt 00:01:06]} Bd5 {[%clk 00:10:19]} {[%emt 00:01:01]} 57.
Ra6+ {[%clk 00:01:03]} {[%emt 00:00:09]} Ke7 {[%clk 00:10:11]} {[%emt
00:00:38]} 58. Ra5 {[%clk 00:00:55]} {[%emt 00:00:38]} Bc6 {[%clk 00:09:08]}
{[%emt 00:01:32]} 59. c4 {[%clk 00:00:46]} {[%emt 00:00:41]} Rxh2 {[%clk
00:09:18]} {[%emt 00:00:19]} 60. Ke3 {[%clk 00:01:14]} {[%emt 00:00:02]} Rh3+
{[%clk 00:08:59]} {[%emt 00:00:48]} 61. Kd4 {[%clk 00:01:43]} {[%emt 00:00:02]}
Bd7 {[%clk 00:09:03]} {[%emt 00:00:25]} 62. Ra7 {[%clk 00:01:28]} {[%emt
00:00:46]} Kd8 {[%clk 00:08:58]} {[%emt 00:00:34]} 63. Ra6 {[%clk 00:01:32]}
{[%emt 00:00:27]} Bxf5 {[%clk 00:08:33]} {[%emt 00:00:55]} 64. Rxf6 {[%clk
00:01:58]} {[%emt 00:00:05]} Bd7 {[%clk 00:08:53]} {[%emt 00:00:09]} 65. Rf3
{[%clk 00:02:19]} {[%emt 00:00:09]} Rxf3 {[%clk 00:09:09]} {[%emt 00:00:15]} 66.
Nxf3 {[%clk 00:02:46]} {[%emt 00:00:03]} Bf5 {[%clk 00:09:20]} {[%emt
00:00:19]} 67. Kc3 {[%clk 00:03:06]} {[%emt 00:00:10]} Kc7 {[%clk 00:09:40]}
{[%emt 00:00:10]} 68. Ne1 {[%clk 00:03:28]} {[%emt 00:00:07]} Kc6 {[%clk
00:09:54]} {[%emt 00:00:16]} 69. Nxd3 {[%clk 00:03:54]} {[%emt 00:00:04]} Bxd3
{[%clk 00:09:53]} {[%emt 00:00:32]} 70. Kxd3 {[%clk 00:04:21]} {[%emt
00:00:03]} 1/2-1/2